bitfinex-derivatives/quotes_ETHF0:USTF0_20250329
["timestamp","ask_amount","ask_price","bid_price","bid_amount"]
[1743253945908,1.07729,1857.4,1857.3,3.2078]
[1743253946708,1.07729,1857.4,1857.2,1.4552]
[1743253946709,1.0774,1857.2,1857.1,3.2158869]
[1743253946915,1.0774,1857.2,1857.1,0.0080869]
[1743253949410,4.2852,1857.2,1857.1,0.0080869]
[1743253951109,5.6582,1857.2,1857.1,0.0080869]
[1743253954821,5.6582,1857.2,1857.1,1.4115869]
[1743253955820,5.6582,1857.2,1857.1,0.0080869]
[1743253958326,2.4504,1857.2,1857.1,0.0080869]
[1743253966426,1.07752,1857.0,1856.9,1.4536]
[1743253967026,1.80562,1857.0,1856.9,1.4536]
[1743253969923,1.07752,1857.0,1856.9,1.4536]
[1743253975329,3.2078,1857.3,1857.1,1.07745]
[1743253975528,1.07748,1857.1,1857.0,1.07751]
[1743253976831,1.07745,1857.2,1857.1,1.07746]
[1743253977030,1.07747,1857.1,1857.0,1.0775]
[1743253977625,1.07752,1857.0,1856.9,1.07753]
[1743253978124,1.07758,1856.9,1856.8,7.9014969]
[1743253978433,4.84431,1857.2,1856.8,7.9014969]
[1743253978634,1.07758,1856.9,1856.8,7.9014969]
[1743253979325,0.0080869,1857.0,1856.9,1.07758]
[1743253983237,1.07739,1857.3,1857.2,1.0774]
[1743253983429,1.07739,1857.3,1857.2,4.2852]
[1743253984538,1.07739,1857.3,1857.2,3.2078]
[1743253985043,1.78719,1857.3,1857.2,3.2078]
[1743253986332,1.07755,1857.0,1856.9,4.28536]
[1743253986533,1.07755,1857.0,1856.9,4.28538]
[1743253986730,1.07752,1857.0,1856.9,4.28538]
[1743253987735,2.5273,1857.1,1856.9,4.28538]
[1743253987941,1.4498,1857.1,1856.9,4.98668]
[1743253988445,2.52731,1857.1,1857.0,1.07752]
[1743253989440,1.07752,1857.0,1856.9,0.7013]
[1743253989641,2.55342,1857.0,1856.9,3.9091]
[1743253989841,2.55342,1857.0,1856.9,4.98668]
[1743253990340,2.55342,1857.0,1856.9,3.9091]
[1743253990536,2.55342,1857.0,1856.9,4.98668]
[1743253990744,1.07752,1857.0,1856.9,4.98668]
[1743253990942,1.0775,1857.1,1856.9,4.98668]
[1743253991142,1.0775,1857.1,1857.0,1.07752]
[1743253991441,1.0775,1857.1,1857.0,2.47142]
[1743253991634,2.4812,1857.1,1857.0,1.3939]
[1743253993934,1.07752,1857.0,1856.9,3.2078]
[1743253994143,3.15842,1857.0,1856.9,4.6291]
[1743253997043,3.15842,1857.0,1856.9,5.70668]
[1743253997238,2.0809,1857.0,1856.9,5.70668]
[1743253997641,1.4044,1857.0,1856.9,5.70668]
[1743253997944,1.4044,1857.0,1856.9,6.43518]
[1743253998647,2.48192,1857.0,1856.9,6.43518]
[1743253998844,1.07749,1857.1,1857.0,1.07752]
[1743253999145,1.07749,1857.1,1857.0,2.44982]
[1743253999545,3.89984,1857.2,1857.0,2.44982]
[1743253999746,1.07739,1857.3,1857.2,1.0774]
[1743253999942,1.07739,1857.3,1857.2,1.4111]
[1743254000336,2.41529,1857.3,1857.2,1.4111]
[1743254000942,2.41529,1857.3,1857.2,2.1454]
[1743254004053,2.41529,1857.3,1857.2,3.2228]
[1743254004347,1.3379,1857.3,1857.2,3.2228]
[1743254004553,0.7373869,1857.4,1857.3,1.07734]
[1743254004754,1.8146769,1857.4,1857.3,5.66384]
[1743254005753,3.2078,1857.8,1857.5,1.07721]
[1743254005951,1.07719,1857.6,1857.4,2.52044]
[1743254006148,1.07719,1857.6,1857.5,2.52043]
[1743254006550,2.54799,1857.6,1857.5,2.52043]
[1743254007247,1.4708,1857.6,1857.5,2.52043]
[1743254007449,2.54797,1857.6,1857.5,5.72823]
[1743254007661,1.4708,1857.6,1857.5,5.72823]
[1743254008665,0.00539132,1857.7,1857.6,1.07717]
[1743254008861,0.00124542,1857.7,1857.6,7.53377]
[1743254009064,0.00124542,1857.7,1857.6,16.93409546]
[1743254010169,0.6971,1858.3,1857.7,2.69279]
[1743254010462,1.7739,1858.3,1858.1,4.28468]
[1743254010667,1.7739,1858.3,1858.2,1.4024]
[1743254012266,1.7739,1858.3,1858.1,3.2158869]
[1743254012267,1.07682,1858.2,1858.1,3.2158869]
[1743254012471,3.21522,1858.2,1858.1,4.6515869]
[1743254012969,3.21522,1858.2,1858.1,0.0080869]
[1743254015062,3.21522,1858.2,1858.1,1.4129869]
[1743254016373,5.89946,1858.5,1858.1,1.4129869]
[1743254016374,1.07674,1858.4,1858.2,1.0768]
[1743254016564,2.42514,1858.4,1858.3,1.4049]
[1743254021973,1.3484,1858.4,1858.3,1.4049]
[1743254022173,1.3484,1858.4,1858.3,2.48166]
[1743254022666,1.3484,1858.4,1858.3,3.21456]
[1743254022872,1.3484,1858.4,1858.3,2.1378]
[1743254023075,1.3484,1858.4,1858.3,3.21456]
[1743254024675,1.381,1858.5,1858.4,1.07671]
[1743254024865,1.381,1858.5,1858.4,2.45931]
[1743254025270,2.8334,1858.5,1858.4,2.45931]
[1743254027280,3.601,1859.0,1858.7,1.07649]
[1743254027576,1.07647,1858.8,1858.7,1.07649]
[1743254027778,1.07647,1858.8,1858.7,2.44869]
[1743254028269,1.3677,1858.8,1858.7,2.44869]
[1743254029675,2.44421,1858.8,1858.6,4.28434]
[1743254029876,0.7308,1858.7,1858.6,4.58]
[1743254030076,2.139,1858.7,1858.6,5.65659]
[1743254035571,0.6721,1858.9,1858.8,1.07647]
[1743254035776,1.3564,1858.9,1858.8,1.07647]
[1743254036681,2.43282,1858.9,1858.8,1.07647]
[1743254036982,2.43282,1858.9,1858.8,2.43177]
[1743254037183,1.3564,1858.9,1858.8,2.43177]
[1743254037378,2.43282,1858.9,1858.8,1.3553]
[1743254037574,3.90442,1858.9,1858.8,1.3553]
[1743254038081,3.90442,1858.9,1858.8,2.43177]
[1743254038978,3.90442,1858.9,1858.8,1.3553]
[1743254039380,3.90442,1858.9,1858.8,2.43177]
[1743254039681,1.07651,1858.8,1858.6,4.28434]
[1743254040083,1.07653,1858.7,1858.6,3.2078]
[1743254040282,1.07653,1858.7,1858.6,4.28439]
[1743254040483,1.07653,1858.8,1858.6,3.2078]
[1743254040683,1.07653,1858.8,1858.7,1.07653]
[1743254040887,1.07653,1858.8,1858.7,1.4017]
[1743254041280,1.07653,1858.8,1858.7,2.47823]
[1743254041679,1.07653,1858.8,1858.7,1.4017]
[1743254042380,1.07653,1858.7,1858.6,3.2078]
[1743254043289,1.07653,1858.7,1858.6,4.28439]
[1743254043584,1.07653,1858.7,1858.6,5.63499]
[1743254043976,1.07653,1858.7,1858.6,4.5584]
[1743254044876,1.07653,1858.7,1858.6,3.2078]
[1743254046375,1.07653,1858.7,1858.6,3.9266]
[1743254046888,1.07653,1858.7,1858.6,4.5687]
[1743254054287,1.07653,1858.7,1858.6,3.2078]
[1743254057684,1.07653,1858.7,1858.6,4.6856]
[1743254057884,1.07653,1858.7,1858.6,5.372]
[1743254058094,1.07653,1858.7,1858.6,6.44859]
[1743254058282,1.07653,1858.7,1858.6,5.372]
[1743254058993,1.07653,1858.7,1858.6,6.44859]
[1743254059183,1.07653,1858.7,1858.6,5.372]
[1743254060799,1.07653,1858.7,1858.6,6.44859]
[1743254061000,1.07653,1858.7,1858.6,5.372]
[1743254064004,1.07653,1858.7,1858.6,4.6856]
[1743254068195,1.07665,1858.5,1858.4,3.2078]
[1743254068498,4.28445,1858.5,1858.4,1.4238]
[1743254068904,2.55785,1858.5,1858.4,1.4238]
[1743254081708,1.07665,1858.5,1858.4,1.4238]
[1743254082604,3.2078,1859.3,1858.4,3.9238]
[1743254082811,0.03924219,1859.5,1858.9,3.2078]
[1743254083009,1.07625,1859.2,1859.0,3.92751]
[1743254083206,1.07625,1859.2,1859.1,1.411]
[1743254083506,1.3534,1859.4,1859.1,1.411]
[1743254083708,1.07624,1859.2,1859.1,1.411]
[1743254087411,2.43664,1859.2,1859.1,1.411]
[1743254088711,3.16874,1859.2,1859.1,1.411]
[1743254093125,1.07624,1859.2,1859.1,1.411]
[1743254095426,1.07615,1859.4,1859.3,1.07617]
[1743254095629,1.07613,1859.4,1859.3,1.07617]
[1743254095823,0.03924219,1859.5,1859.3,1.07617]
[1743254096129,1.11531219,1859.5,1859.4,2.7535]
[1743254100230,0.03924219,1859.5,1859.4,3.82963]
[1743254100434,3.2078,1859.9,1859.4,5.2535]
[1743254100630,1.07585,1859.9,1859.7,1.07593]
[1743254100928,1.07585,1859.9,1859.6,3.2078]
[1743254100929,1.07585,1859.9,1859.8,2.1684]
[1743254102134,1.4068,1860.0,1859.8,2.1684]
[1743254102329,2.50246,1860.1,1859.9,1.4738]
[1743254102526,1.07576,1860.1,1859.9,2.54964]
[1743254102930,2.48249,1860.2,1860.0,5.75734]
[1743254103132,2.48249,1860.2,1860.1,1.4652]
[1743254103635,2.48249,1860.2,1859.9,4.67587494]
[1743254103636,1.07578,1860.0,1859.9,0.00806494]
[1743254103826,4.28358,1860.0,1859.9,0.00806494]
[1743254104229,5.66898,1860.0,1859.9,0.00806494]
[1743254104729,11.76098,1860.0,1859.9,0.00806494]
[1743254104931,1.07613,1859.4,1859.3,3.2078]
[1743254105138,1.07613,1859.4,1859.3,4.28398]
[1743254105338,1.07611,1859.5,1859.3,4.97878]
[1743254105833,1.07611,1859.5,1859.3,4.97876]
[1743254106040,1.07613,1859.4,1859.3,4.97876]
[1743254106237,0.00799175,1859.6,1859.3,3.9026]
[1743254106540,1.07613,1859.4,1859.3,3.9026]
[1743254107037,0.00799175,1859.6,1859.3,3.9026]
[1743254107245,1.07607,1859.5,1859.3,4.97876]
[1743254107534,0.00799175,1859.6,1859.5,1.07607]
[1743254107743,0.00799175,1859.6,1859.5,7.87587]
[1743254108040,1.07576,1860.1,1859.6,2.69004]
[1743254108237,1.07576,1860.1,1859.9,1.07584]
[1743254108741,1.07576,1860.1,1860.0,2.177]
[1743254109637,2.54274,1860.3,1860.1,1.0757]
[1743254109839,1.07559,1860.4,1860.2,2.54645]
[1743254110038,1.07555,1860.4,1860.3,1.4708]
[1743254111137,2.45995,1860.4,1860.3,1.4708]
[1743254111537,1.07555,1860.4,1860.3,1.4708]
[1743254112534,2.50945,1860.4,1860.3,1.4708]
[1743254113739,1.07555,1860.4,1860.3,1.4708]
[1743254114540,4.28333,1860.5,1860.3,2.54639]
[1743254114740,1.07555,1860.4,1860.3,1.4708]
[1743254114937,1.07555,1860.4,1860.2,0.00806494]
[1743254115141,1.07555,1860.4,1860.2,1.08368494]
[1743254115342,1.07561,1860.3,1860.2,0.00806494]
[1743254115839,4.6417,1860.5,1860.2,0.00806494]
[1743254115840,2.47369,1860.4,1860.2,1.08371494]
[1743254116034,1.07561,1860.3,1860.2,0.00806494]
[1743254117247,1.07561,1860.3,1860.2,1.08372494]
[1743254117447,1.07561,1860.3,1860.2,0.00806494]
[1743254118345,4.28341,1860.3,1860.2,0.00806494]
[1743254118555,1.07595,1859.7,1859.6,3.2078]
[1743254118751,1.07595,1859.7,1859.4,3.59]
[1743254118752,5.89742,1859.9,1859.4,8.57081]
[1743254118956,1.07607,1859.5,1859.4,7.4947]
[1743254119452,1.07607,1859.5,1859.4,3.9047]
[1743254119848,1.07607,1859.5,1859.4,3.2078]
[1743254120055,2.49427,1859.5,1859.4,3.2078]
[1743254120845,1.07613,1859.4,1859.3,0.00806494]
[1743254121046,2.49433,1859.4,1859.3,0.00806494]
[1743254122647,1.4182,1859.4,1859.3,1.08424494]
[1743254123451,2.49433,1859.4,1859.3,1.08424494]
[1743254123851,2.49433,1859.4,1859.3,0.00806494]
[1743254124253,1.4182,1859.4,1859.3,1.08424494]
[1743254124455,2.49433,1859.4,1859.3,0.00806494]
[1743254124752,2.49433,1859.4,1859.3,1.08424494]
[1743254124953,1.4182,1859.4,1859.3,1.08424494]
[1743254125155,2.49433,1859.4,1859.3,0.00806494]
[1743254131368,2.49433,1859.4,1859.3,1.43566494]
[1743254132857,0.00806494,1859.6,1859.3,2.51184494]
[1743254133058,1.07607,1859.5,1859.4,1.4276]
[1743254133460,0.00806494,1859.6,1859.5,1.07607]
[1743254133764,1.08407494,1859.6,1859.5,2.0983]
[1743254134464,1.08407494,1859.6,1859.5,3.17437]
[1743254134964,0.00806494,1859.6,1859.5,5.67437]
[1743254135259,1.4736,1860.0,1859.5,12.21894444]
[1743254135465,1.4736,1860.0,1859.8,1.07588]
[1743254135659,2.54938,1860.0,1859.9,1.4146]
[1743254138567,1.4736,1860.0,1859.7,3.2078]
[1743254138765,1.0759,1859.8,1859.7,3.2078]
[1743254138963,1.07607,1859.5,1859.4,8.2178]
[1743254139271,1.07607,1859.5,1859.4,4.6288]
[1743254139664,2.52515,1859.6,1859.4,5.70493]
[1743254139868,1.07605,1859.6,1859.5,1.3705]
[1743254140164,1.07605,1859.6,1859.5,2.44657]
[1743254140358,1.07605,1859.6,1859.5,1.3705]
[1743254141762,2.4573,1859.7,1859.5,1.3705]
[1743254141963,3.2078,1860.2,1859.5,2.0547]
[1743254142164,2.48648,1860.1,1859.6,6.63658]
[1743254142364,1.4107,1860.1,1859.9,1.07581]
[1743254142573,2.48646,1860.1,1860.0,1.4727]
[1743254142866,1.07572,1860.1,1860.0,2.54846]
[1743254143067,1.07572,1860.1,1860.0,4.6805]
[1743254143367,1.0757,1860.2,1860.0,5.75628]
[1743254143567,1.0757,1860.2,1860.1,1.4727]
[1743254147665,1.07566,1860.2,1860.1,1.4727]
[1743254151878,1.07566,1860.2,1860.1,2.54842]
[1743254152081,1.07566,1860.2,1860.1,1.4727]
[1743254153680,2.68917,1860.2,1859.8,3.2078]
[1743254153981,1.07584,1859.9,1859.8,3.2078]
[1743254154875,2.42314,1859.9,1859.8,3.2078]
[1743254155075,4.03694,1859.9,1859.4,5.68348]
[1743254155275,1.07601,1859.6,1859.5,1.4092]
[1743254155578,1.07607,1859.5,1859.4,3.2078]
[1743254155773,1.07607,1859.5,1859.3,4.67120494]
[1743254155774,1.76057,1859.5,1859.3,4.67120494]
[1743254156078,1.76057,1859.5,1859.4,1.4092]
[1743254156277,1.07613,1859.4,1859.3,1.41726494]
[1743254157180,1.07613,1859.4,1859.3,2.49344494]
[1743254157479,1.07613,1859.4,1859.3,1.41726494]
[1743254160977,1.7606,1859.5,1859.3,2.49342494]
[1743254161284,1.07592,1859.8,1859.6,1.07601]
[1743254161578,1.07595,1859.7,1859.5,1.07603]
[1743254161777,1.07595,1859.7,1859.6,1.3858]
[1743254162877,1.07595,1859.7,1859.6,2.46181]
[1743254163284,1.07595,1859.7,1859.6,1.3858]
[1743254165295,2.68992,1859.7,1859.3,0.00806494]
[1743254165499,0.6982,1859.6,1859.3,1.44966494]
[1743254165804,4.98195,1859.8,1859.4,3.9019]
[1743254166003,3.906,1859.8,1859.5,1.4416]
[1743254166198,4.98191,1859.8,1859.6,1.07601]
[1743254166504,3.2078,1859.8,1859.7,2.51755]
[1743254168301,3.9051,1860.2,1859.8,1.0759]
[1743254168507,1.07578,1860.0,1859.9,1.4708]
[1743254168902,1.07578,1860.0,1859.9,2.54664]
[1743254169406,1.07578,1860.0,1859.9,1.4708]
[1743254169801,1.0759,1859.8,1859.7,3.2078]
[1743254170506,1.7955,1859.8,1859.7,3.2078]
[1743254171309,3.2752,1859.8,1859.7,3.2078]
[1743254171807,3.2752,1859.8,1859.3,4.67022494]
[1743254171808,1.0761,1859.5,1859.3,4.67022494]
[1743254172110,1.0761,1859.5,1859.4,1.3414]
[1743254172300,3.40939,1859.8,1859.4,1.3414]
[1743254172301,0.7196,1859.8,1859.4,1.3414]
[1743254172505,0.7196,1859.8,1859.5,1.07607]
[1743254172700,1.07595,1859.7,1859.6,4.5492]
[1743254173103,1.07595,1859.7,1859.6,3.2078]
[1743254175110,1.07595,1859.7,1859.6,4.6849]
[1743254176499,0.7196,1859.8,1859.6,4.6849]
[1743254176705,1.81277,1859.9,1859.7,2.48375]
[1743254176905,1.81277,1859.9,1859.8,1.4078]
[1743254179807,1.07595,1859.7,1859.6,3.2078]
[1743254182319,1.07594,1859.8,1859.7,1.07595]
[1743254182612,0.7369,1859.9,1859.8,1.0759]
[1743254182816,1.81274,1859.9,1859.8,1.7529]
[1743254183517,1.07581,1860.0,1859.8,3.8848]
[1743254183716,1.07581,1860.0,1859.9,1.473]
[1743254184214,1.07581,1860.0,1859.9,2.54884]
[1743254184415,1.07581,1860.0,1859.9,1.473]
[1743254184817,1.07594,1859.8,1859.6,8.58308]
[1743254185018,5.89717,1860.1,1859.7,1.473]
[1743254185317,1.0759,1859.8,1859.7,1.473]
[1743254189820,1.07595,1859.7,1859.6,3.2078]
[1743254190019,2.54155,1859.7,1859.6,3.2078]
[1743254190719,2.54155,1859.7,1859.6,4.6236]
[1743254192219,2.54155,1859.7,1859.6,5.69961]
[1743254192428,2.54155,1859.7,1859.6,4.6236]
[1743254194428,2.54155,1859.7,1859.6,5.69961]
[1743254195122,2.54155,1859.7,1859.6,4.6236]
[1743254198015,10.94834,1859.7,1859.3,0.00806494]
[1743254198222,1.07613,1859.4,1859.3,0.00806494]
[1743254199030,1.77283,1859.4,1859.3,0.00806494]
[1743254204430,5.35783,1859.4,1859.3,0.00806494]
[1743254206430,1.07624,1859.2,1859.1,4.6086]
[1743254207133,2.55414,1859.2,1859.1,4.6086]
[1743254207332,2.55414,1859.2,1859.1,1.4008]
[1743254207533,1.0763,1859.1,1859.0,0.00806494]
[1743254207730,3.2874,1859.1,1859.0,0.00806494]
[1743254209428,1.0763,1859.1,1859.0,2.48472494]
[1743254209628,1.0763,1859.1,1859.0,1.40836494]
[1743254210235,1.07627,1859.2,1859.0,2.48472494]
[1743254210435,1.0763,1859.1,1859.0,2.48472494]
[1743254210635,1.0763,1859.1,1859.0,1.08442494]
[1743254211238,1.0763,1859.1,1859.0,0.00806494]
[1743254212437,1.0763,1859.1,1859.0,1.08442494]
[1743254212730,1.0763,1859.1,1859.0,0.00806494]
[1743254213135,1.7727,1859.1,1859.0,0.00806494]
[1743254213836,1.7727,1859.1,1859.0,1.08442494]
[1743254214149,1.07624,1859.2,1859.1,1.0763]
[1743254214347,1.07624,1859.2,1859.1,0.6731]
[1743254214846,2.51234,1859.2,1859.1,0.6731]
[1743254215649,1.0763,1859.1,1859.0,3.21586494]
[1743254215955,3.1301,1859.1,1859.0,3.21586494]
[1743254217951,1.07642,1858.9,1858.8,3.2078]
[1743254218546,1.81562,1858.9,1858.8,3.2078]
[1743254218751,1.07651,1858.8,1858.6,2.48806]
[1743254218946,1.07659,1858.6,1858.5,3.2078]
[1743254219257,1.07659,1858.6,1858.5,3.21586494]
[1743254219753,1.07659,1858.6,1858.5,0.00806494]
[1743254219946,2.41849,1858.6,1858.5,0.00806494]
[1743254221351,2.41849,1858.6,1858.5,1.37276494]
[1743254221754,2.41849,1858.6,1858.5,0.00806494]
[1743254223858,6.00349,1858.6,1858.5,0.00806494]
[1743254227459,9.21129,1858.6,1858.5,0.00806494]
[1743254227758,1.77388,1858.7,1858.5,0.00806494]
[1743254227950,1.07659,1858.6,1858.5,0.00806494]
[1743254228156,1.07659,1858.6,1858.5,0.73626494]
[1743254228455,1.07659,1858.6,1858.5,2.15126494]
[1743254229262,1.07659,1858.6,1858.5,1.42306494]
[1743254232354,1.81019,1858.6,1858.5,1.42306494]
[1743254235661,1.81019,1858.6,1858.5,0.00806494]
[1743254236263,3.15269,1858.6,1858.5,0.00806494]
[1743254236564,1.07688,1858.1,1858.0,4.6792]
[1743254236865,1.07688,1858.1,1858.0,1.4535]
[1743254237369,1.07705,1857.8,1857.7,3.2078]
[1743254237659,1.07705,1857.8,1857.7,3.9474]
[1743254238763,1.07705,1857.8,1857.7,5.2877]
[1743254238969,1.07705,1857.8,1857.7,2.0799]
[1743254239267,1.07705,1857.8,1857.7,1.3403]
[1743254239463,2.49165,1857.8,1857.7,1.3403]
[1743254239867,1.08510494,1857.9,1857.7,2.41739]
[1743254240064,0.00806494,1857.9,1857.8,1.07705]
[1743254240264,1.08506494,1857.9,1857.8,1.4582]
[1743254240468,0.00806494,1857.9,1857.8,2.53525]
[1743254241063,1.08506494,1857.9,1857.8,1.4582]
[1743254241869,1.08506494,1857.9,1857.8,2.53525]
[1743254242468,1.08506494,1857.9,1857.8,1.4582]
[1743254243462,2.50246494,1857.9,1857.8,1.4582]
[1743254243972,0.00806494,1857.9,1857.8,2.53525]
[1743254244669,1.08506494,1857.9,1857.8,1.4582]
[1743254247375,0.00806494,1857.9,1857.8,2.53525]
[1743254248874,1.08506494,1857.9,1857.8,1.4582]
[1743254249073,0.00806494,1857.9,1857.8,2.53525]
[1743254249268,1.08506494,1857.9,1857.8,1.4582]
[1743254250072,2.54476494,1857.9,1857.8,1.4582]
[1743254254175,3.24216494,1857.9,1857.8,1.4582]
[1743254256385,1.08506494,1857.9,1857.8,1.4582]
[1743254257586,1.08506494,1857.9,1857.8,2.53525]
[1743254257777,3.2078,1858.6,1857.8,6.11925]
[1743254257973,2.55091,1858.3,1858.2,3.2078]
[1743254258173,2.55091,1858.3,1858.2,4.6625]
[1743254258971,2.55091,1858.3,1858.2,5.73932]
[1743254259175,1.08477494,1858.4,1858.2,4.6625]
[1743254259386,1.08477494,1858.4,1858.3,2.1681]
[1743254259778,2.50687494,1858.4,1858.3,2.1681]
[1743254261882,2.50687494,1858.4,1858.2,4.28461]
[1743254261883,1.07676,1858.3,1858.2,3.2078]
[1743254262186,2.49636,1858.3,1858.2,3.2078]
[1743254262781,2.49636,1858.3,1858.2,4.6805]
[1743254264085,2.49636,1858.3,1858.2,3.2078]
[1743254264482,1.07682,1858.2,1858.1,1.41]
[1743254264682,1.07688,1858.1,1858.0,1.80408]
[1743254265286,2.49098,1858.1,1858.0,1.80408]
[1743254266682,1.4141,1858.1,1858.0,1.80408]
[1743254268590,2.49098,1858.1,1858.0,1.80408]
[1743254268983,1.4141,1858.1,1858.0,1.80408]
[1743254269488,2.49098,1858.1,1858.0,1.80408]
[1743254270078,1.4141,1858.1,1858.0,1.80408]
[1743254270686,1.0768,1858.3,1858.1,1.07688]
[1743254270993,1.0768,1858.3,1858.2,3.2078]
[1743254271195,1.0768,1858.3,1858.2,4.28462]
[1743254272286,1.0768,1858.3,1858.2,3.2078]
[1743254272487,1.7519,1858.3,1858.2,4.28462]
[1743254273294,0.6751,1858.3,1858.2,4.28462]
[1743254273597,3.2078,1858.7,1858.5,1.07663]
[1743254273790,5.73558,1858.7,1858.5,1.07663]
[1743254273996,3.2078,1858.7,1858.6,1.07659]
[1743254275192,2.53578494,1858.8,1858.7,1.07653]
[1743254275693,2.53578494,1858.8,1858.7,1.74533]
[1743254276890,2.53578494,1858.8,1858.7,0.6688]
[1743254278491,1.45926494,1858.8,1858.6,3.21586494]
[1743254278683,3.93023,1858.7,1858.6,3.21586494]
[1743254280595,0.00806494,1858.8,1858.7,1.07653]
[1743254280791,0.00806494,1858.8,1858.7,1.79483]
[1743254280988,0.00806494,1858.8,1858.7,2.47543]
[1743254281397,0.00806494,1858.8,1858.7,3.93943]
[1743254281791,1.08453494,1858.8,1858.7,2.8629]
[1743254281990,2.49183494,1858.8,1858.7,2.8629]
[1743254282289,1.41536494,1858.8,1858.7,3.93943]
[1743254282999,2.49183494,1858.8,1858.7,3.93943]
[1743254283290,1.41536494,1858.8,1858.7,3.93943]
[1743254283791,0.00806494,1858.8,1858.7,3.93943]
[1743254283997,3.2078,1859.2,1859.0,1.07636]
[1743254283998,1.3874,1859.1,1859.0,1.07636]
[1743254284595,2.4637,1859.1,1859.0,1.80826]
[1743254284800,1.3874,1859.1,1858.8,1.07646]
[1743254285108,1.07643,1858.9,1858.8,0.7319]
[1743254285298,1.07643,1858.9,1858.8,1.80837]
[1743254285495,2.43913,1858.9,1858.7,4.96489]
[1743254285699,1.07647,1858.8,1858.7,4.28429]
[1743254285897,2.43917,1858.8,1858.7,3.2078]
[1743254287189,1.3627,1858.8,1858.7,4.28433]
[1743254288396,2.43917,1858.8,1858.7,3.2078]
[1743254289401,1.07647,1858.8,1858.7,3.2078]
[1743254289603,1.07647,1858.8,1858.7,4.28433]
[1743254289990,2.42866,1858.9,1858.7,4.28433]
[1743254290999,1.3522,1858.9,1858.8,1.07647]
[1743254291199,2.42862,1858.9,1858.8,1.07647]
[1743254291603,2.53149,1859.0,1858.8,1.80043]
[1743254291811,3.99869,1859.0,1858.8,1.80043]
[1743254292096,2.9223,1859.0,1858.9,1.07642]
[1743254292297,2.1916,1859.0,1858.9,1.07642]
[1743254292498,2.1916,1859.0,1858.9,1.75142]
[1743254293002,1.07628,1859.2,1859.1,1.0763]
[1743254293407,2.206,1859.3,1859.0,1.07632]
[1743254293701,1.4672,1859.2,1859.0,1.07632]
[1743254294090,1.0763,1859.1,1859.0,1.07632]
[1743254295400,2.54348,1859.2,1859.0,1.07632]
[1743254295803,1.3616,1859.1,1859.0,1.07632]
[1743254297504,1.07628,1859.2,1859.0,1.07632]
[1743254297704,2.41718,1859.2,1859.0,1.07632]
[1743254299000,2.41717,1859.2,1859.1,1.0763]
[1743254299301,1.3409,1859.2,1859.1,1.0763]
[1743254299999,0.7388,1859.3,1859.2,1.07624]
[1743254300205,2.41704,1859.4,1859.3,1.07618]
[1743254300501,1.3409,1859.4,1859.3,1.07618]
[1743254300704,1.07607,1859.5,1859.4,1.07613]
[1743254301403,1.4105,1859.5,1859.4,2.44413]
[1743254301799,1.3923,1859.6,1859.5,1.07607]
[1743254302000,1.4105,1859.7,1859.6,1.07601]
[1743254302202,1.4105,1859.7,1859.6,3.13201]
[1743254302409,2.48645,1859.7,1859.6,3.13201]
[1743254302800,1.4105,1859.7,1859.6,3.13201]
[1743254303401,1.3378,1859.9,1859.8,1.0759]
[1743254303608,1.3378,1859.9,1859.8,4.2837]
[1743254304000,2.7593,1859.9,1859.8,5.6349]
[1743254305209,1.07595,1859.7,1859.6,3.2078]
[1743254305400,2.7593,1859.9,1859.5,3.21586494]
[1743254305401,1.07601,1859.6,1859.5,3.21586494]
[1743254305705,3.17061,1859.6,1859.5,0.00806494]
[1743254306911,1.07613,1859.4,1859.3,3.2078]
[1743254309809,1.76803,1859.4,1859.3,3.2078]
[1743254312208,1.76803,1859.4,1859.3,4.6429]
[1743254313407,1.76803,1859.4,1859.3,3.2078]
[1743254315119,1.76803,1859.4,1859.2,0.00806494]
[1743254315120,1.07618,1859.3,1859.2,0.00806494]
[1743254315319,6.35948,1859.3,1859.2,0.00806494]
[1743254320517,3.15168,1859.3,1859.2,0.00806494]
[1743254320920,3.15168,1859.3,1859.2,1.40496494]
[1743254321920,1.3372,1859.3,1859.2,1.40496494]
[1743254322215,0.00806494,1859.5,1859.3,1.07614]
[1743254322418,0.00806494,1859.5,1859.4,1.07613]
[1743254322821,1.08416494,1859.5,1859.3,4.28394]
[1743254323214,1.08416494,1859.5,1859.4,1.07613]
[1743254323422,1.07613,1859.4,1859.3,3.2078]
[1743254323617,1.07618,1859.3,1859.2,0.00806494]
[1743254323925,1.81488,1859.3,1859.2,0.00806494]
[1743254325524,1.07618,1859.3,1859.2,4.29210494]
[1743254325823,1.07615,1859.4,1859.2,4.29210494]
[1743254326427,1.07618,1859.3,1859.2,4.29210494]
[1743254326929,2.44246,1859.4,1859.2,4.29210494]
[1743254327128,1.07616,1859.4,1859.2,4.29210494]
[1743254327629,1.07618,1859.3,1859.2,0.00806494]
[1743254327926,1.07642,1858.9,1858.8,0.7084]
[1743254330133,2.46959,1859.0,1858.8,1.78487]
[1743254330326,1.07642,1858.9,1858.8,1.78487]
[1743254330526,2.46958,1859.0,1858.8,1.78484]
[1743254330727,2.46958,1859.0,1858.9,3.2078]
[1743254330925,0.6979,1859.2,1858.9,4.28422]
[1743254331127,1.07636,1859.0,1858.9,3.2078]
[1743254332833,1.07636,1859.0,1858.9,4.28422]
[1743254333127,1.07636,1859.0,1858.9,3.2078]
[1743254333334,1.07636,1859.0,1858.9,4.28422]
[1743254334129,1.07636,1859.0,1858.9,3.2078]
[1743254334329,1.07636,1859.0,1858.8,1.78483]
[1743254334531,1.07642,1858.9,1858.8,0.7084]
[1743254335333,1.07642,1858.9,1858.8,1.78485]